fUSD/lending_fUSD_20250124
["ID","MTS","AMOUNT","RATE_DAILY","PERIOD"]
[350278193,1737761454129,-500.0,0.00019569,2]
[350278194,1737761454139,-500.0,0.00019569,2]
[350278195,1737761454149,-500.0,0.00019569,2]
[350278196,1737761454159,-489.93853176,0.00019569,2]
[350278197,1737761454168,-500.0,0.00019569,2]
[350278198,1737761454178,-500.0,0.00019569,2]
[350278199,1737761454187,-500.0,0.00019569,2]
[350278200,1737761454196,-557.51622587,0.00019569,2]
[350278201,1737761454207,-500.0,0.00019569,2]
[350278202,1737761454217,-500.0,0.00019569,2]
[350278203,1737761454226,-500.0,0.00019569,2]
[350278204,1737761454236,-500.0,0.00019569,2]
[350278205,1737761454245,-500.0,0.00019569,2]
[350278206,1737761454255,-500.0,0.00019569,2]
[350278207,1737761454265,-500.0,0.00019569,2]
[350278208,1737761454274,-500.0,0.00019569,2]
[350278209,1737761454286,-500.0,0.00019569,2]
[350278210,1737761454300,-500.0,0.00019569,2]
[350278211,1737761454310,-500.0,0.00019569,2]
[350278212,1737761454320,-517.60421557,0.00019569,2]
[350278213,1737761454330,-500.0,0.00019569,2]
[350278214,1737761454339,-500.0,0.00019569,2]
[350278215,1737761454349,-500.0,0.00019569,2]
[350278216,1737761454359,-500.0,0.00019569,2]
[350278217,1737761454368,-500.0,0.00019569,2]
[350278218,1737761454379,-500.0,0.00019569,2]
[350278219,1737761454388,-500.0,0.00019569,2]
[350278220,1737761454397,-500.0,0.00019569,2]
[350278221,1737761454407,-500.0,0.00019569,2]
[350278222,1737761454417,-500.0,0.00019569,2]
[350278223,1737761454426,-500.0,0.00019569,2]
[350278224,1737761454435,-500.0,0.00019569,2]
[350278225,1737761454445,-500.0,0.00019569,2]
[350278226,1737761454455,-500.0,0.00019569,2]
[350278227,1737761454464,-500.0,0.00019569,2]
[350278228,1737761454474,-500.0,0.00019569,2]
[350278229,1737761454483,-500.0,0.00019569,2]
[350278230,1737761454493,-500.0,0.00019569,2]
[350278231,1737761454503,-500.0,0.00019569,2]
[350278232,1737761454512,-500.0,0.00019569,2]
[350278233,1737761454521,-500.0,0.00019569,2]
[350278234,1737761454531,-500.0,0.00019569,2]
[350278235,1737761454540,-518.00037469,0.00019569,2]
[350278236,1737761454555,-560.30728156,0.00019569,2]
[350278237,1737761454565,-500.0,0.00019569,2]
[350278238,1737761454575,-500.0,0.00019569,2]
[350278239,1737761454584,-792.78,0.00019569,2]
[350278240,1737761454593,-500.0,0.00019569,2]
[350278241,1737761454602,-569.19082096,0.00019569,2]
[350278242,1737761454612,-500.0,0.00019569,2]
[350278243,1737761454621,-1502.63,0.00019569,2]
[350278244,1737761454631,-500.0,0.00019569,2]
[350278245,1737761454640,-500.0,0.00019569,2]
[350278246,1737761454650,-500.0,0.00019569,2]
[350278247,1737761454660,-500.0,0.00019569,2]
[350278248,1737761454669,-569.18,0.00019569,2]
[350278249,1737761454679,-500.0,0.00019569,2]
[350278250,1737761454688,-500.0,0.00019569,2]
[350278251,1737761454697,-500.0,0.00019569,2]
[350278252,1737761454707,-1089.73,0.00019569,2]
[350278253,1737761454716,-500.0,0.00019569,2]
[350278254,1737761454726,-500.0,0.00019569,2]
[350278255,1737761454735,-500.0,0.00019569,2]
[350278256,1737761454745,-500.0,0.00019569,2]
[350278257,1737761454755,-726.67,0.00019569,2]
[350278258,1737761454765,-500.0,0.00019569,2]
[350278259,1737761454774,-500.0,0.00019569,2]
[350278260,1737761454783,-500.0,0.00019569,2]
[350278261,1737761454792,-500.0,0.00019569,2]
[350278262,1737761454806,-812.42,0.00019569,2]
[350278263,1737761454816,-500.0,0.00019569,2]
[350278264,1737761454826,-500.0,0.00019569,2]
[350278265,1737761454835,-595.42228815,0.00019569,2]
[350278266,1737761454844,-500.0,0.00019569,2]
[350278267,1737761454853,-500.0,0.00019569,2]
[350278268,1737761454863,-500.0,0.00019569,2]
[350278269,1737761454872,-500.0,0.00019569,2]
[350278270,1737761454881,-576.88,0.00019569,2]
[350278271,1737761454890,-500.0,0.00019569,2]
[350278272,1737761454899,-500.0,0.00019569,2]
[350278273,1737761454909,-500.0,0.00019569,2]
[350278274,1737761454918,-721.92,0.00019569,2]
[350278275,1737761454927,-500.0,0.00019569,2]
[350278276,1737761454937,-500.0,0.00019569,2]
[350278277,1737761454946,-500.0,0.00019569,2]
[350278278,1737761454955,-500.0,0.00019569,2]
[350278279,1737761454965,-500.0,0.00019569,2]
[350278280,1737761454975,-500.0,0.00019569,2]
[350278281,1737761454984,-500.0,0.00019569,2]
[350278282,1737761454993,-500.0,0.00019569,2]
[350278283,1737761455003,-804.8,0.00019569,2]
[350278284,1737761455013,-1000.0,0.00019569,2]
[350278285,1737761455023,-500.0,0.00019569,2]
[350278286,1737761455033,-500.0,0.00019569,2]
[350278287,1737761455130,-274.36,0.00019569,2]
[350278288,1737761455139,-500.0,0.00019569,2]
[350278289,1737761455149,-500.0,0.00019569,2]
[350278290,1737761455159,-500.0,0.00019569,2]
[350278291,1737761455169,-500.0,0.00019569,2]
[350278292,1737761455179,-795.07,0.00019569,2]
[350278293,1737761455188,-500.0,0.00019569,2]
[350278294,1737761455198,-500.0,0.00019569,2]
[350278295,1737761455207,-500.0,0.00019569,2]
[350278296,1737761455220,-500.0,0.00019569,2]
[350278297,1737761455230,-516.81115305,0.00019569,2]
[350278298,1737761455239,-735.08,0.00019569,2]
[350278299,1737761455251,-500.0,0.00019569,2]
[350278300,1737761455260,-500.0,0.00019569,2]
[350278301,1737761455270,-1094.47,0.00019569,2]
[350278302,1737761455279,-500.0,0.00019569,2]
[350278303,1737761455291,-500.0,0.00019569,2]
[350278304,1737761455306,-500.0,0.00019569,2]
[350278305,1737761455316,-500.0,0.00019569,2]
[350278306,1737761455326,-500.0,0.00019569,2]
[350278307,1737761455335,-500.0,0.00019569,2]
[350278308,1737761455344,-500.0,0.00019569,2]
[350278309,1737761455354,-444.17694487,0.00019569,2]
[350278310,1737761455363,-500.0,0.00019569,2]
[350278311,1737761455372,-500.0,0.00019569,2]
[350278312,1737761455382,-500.0,0.00019569,2]
[350278313,1737761455391,-500.0,0.00019569,2]
[350278314,1737761455400,-500.0,0.00019569,2]
[350278315,1737761455410,-500.0,0.00019569,2]
[350278316,1737761455419,-500.0,0.00019569,2]
[350278317,1737761455428,-392.38133084,0.00019569,2]
[350278318,1737761455438,-716.12,0.00019569,2]
[350278319,1737761455448,-500.0,0.00019569,2]
[350278320,1737761455458,-500.0,0.00019569,2]
[350278321,1737761455468,-500.0,0.00019569,2]
[350278322,1737761455477,-500.0,0.00019569,2]
[350278323,1737761455487,-500.0,0.00019569,2]
[350278324,1737761455496,-500.0,0.00019569,2]
[350278325,1737761455506,-500.0,0.00019569,2]
[350278326,1737761455515,-607.61,0.00019569,2]
[350278327,1737761455525,-500.0,0.00019569,2]
[350278328,1737761455535,-500.0,0.00019569,2]
[350278329,1737761455545,-520.52,0.00019569,2]
[350278330,1737761455557,-500.0,0.00019569,2]
[350278331,1737761455568,-500.0,0.00019569,2]
[350278332,1737761455578,-514.12056275,0.00019569,2]
[350278333,1737761455587,-500.0,0.00019569,2]
[350278334,1737761455596,-500.0,0.00019569,2]
[350278335,1737761455605,-500.0,0.00019569,2]
[350278336,1737761455614,-500.0,0.00019569,2]
[350278337,1737761455623,-500.0,0.00019569,2]
[350278338,1737761455633,-500.0,0.00019573,2]
[350278339,1737761455642,-2000.0,0.00019589,2]
[350278340,1737761455651,-200.0,0.00019589,2]
[350278341,1737761455661,-9365.1933058,0.00019659,2]
[350278342,1737761455670,-10324.88278569,0.00019663,2]
[350278343,1737761455679,-500.0,0.00019669,2]
[350278344,1737761455688,-500.0,0.00019669,2]
[350278345,1737761455698,-500.0,0.00019669,2]
[350278346,1737761455707,-500.0,0.00019669,2]
[350278347,1737761455716,-500.0,0.00019669,2]
[350278348,1737761455726,-500.0,0.00019669,2]
[350278349,1737761455735,-500.0,0.00019669,2]
[350278350,1737761455744,-500.0,0.00019669,2]
[350278351,1737761455754,-500.0,0.00019669,2]
[350278352,1737761455763,-500.0,0.00019669,2]
[350278353,1737761455773,-500.0,0.00019669,2]
[350278354,1737761455782,-500.0,0.00019669,2]
[350278355,1737761455791,-500.0,0.00019669,2]
[350278356,1737761455807,-500.0,0.00019669,2]
[350278357,1737761455816,-500.0,0.00019669,2]
[350278358,1737761455826,-500.0,0.00019669,2]
[350278359,1737761455836,-500.0,0.00019669,2]
[350278360,1737761455845,-500.0,0.00019669,2]
[350278361,1737761455854,-500.0,0.00019669,2]
[350278362,1737761455864,-500.0,0.00019669,2]
[350278363,1737761455873,-500.0,0.00019669,2]
[350278364,1737761455883,-500.0,0.00019669,2]
[350278365,1737761455892,-500.0,0.00019669,2]
[350278366,1737761455902,-500.0,0.00019669,2]
[350278367,1737761455911,-500.0,0.00019669,2]
[350278368,1737761455920,-500.0,0.00019669,2]
[350278369,1737761455929,-500.0,0.00019669,2]
[350278370,1737761455939,-500.0,0.00019669,2]
[350278371,1737761455948,-500.0,0.00019669,2]
[350278372,1737761455958,-500.0,0.00019669,2]
[350278373,1737761455967,-500.0,0.00019669,2]
[350278374,1737761455976,-500.0,0.00019669,2]
[350278375,1737761455985,-500.0,0.00019669,2]
[350278376,1737761455995,-500.0,0.00019669,2]
[350278377,1737761456004,-500.0,0.00019669,2]
[350278378,1737761456013,-500.0,0.00019669,2]
[350278379,1737761456022,-500.0,0.00019669,2]
[350278380,1737761456032,-500.0,0.00019669,2]
[350278381,1737761456041,-500.0,0.00019669,2]
[350278382,1737761456057,-500.0,0.00019669,2]
[350278383,1737761456066,-500.0,0.00019669,2]
[350278384,1737761456077,-500.0,0.00019669,2]
[350278385,1737761456086,-500.0,0.00019669,2]
[350278386,1737761456095,-500.0,0.00019669,2]
[350278387,1737761456105,-500.0,0.00019669,2]
[350278388,1737761456115,-500.0,0.00019669,2]
[350278389,1737761456124,-500.0,0.00019669,2]
[350278390,1737761456135,-500.0,0.00019669,2]
[350278391,1737761456145,-500.0,0.00019669,2]
[350278392,1737761456154,-377.48739666,0.00019669,2]
[350278393,1737761456163,-500.0,0.00019669,2]
[350278394,1737761456173,-500.0,0.00019669,2]
[350278395,1737761456182,-500.0,0.00019669,2]
[350278396,1737761456191,-453.29589653,0.00019669,2]
[350278397,1737761456348,-46.70410347,0.00019669,2]
[350278398,1737761456358,-500.0,0.00019669,2]
[350278399,1737761456367,-500.0,0.00019669,2]
[350278400,1737761456377,-500.0,0.00019669,2]
[350278401,1737761456475,-500.0,0.00019669,2]
[350278402,1737761456484,-500.0,0.00019669,2]
[350278403,1737761456494,-500.0,0.00019669,2]
[350278404,1737761456503,-500.0,0.00019669,2]
[350278405,1737761456512,-500.0,0.00019669,2]
[350278406,1737761456520,-500.0,0.00019669,2]
[350278407,1737761456530,-500.0,0.00019669,2]
[350278408,1737761456539,-500.0,0.00019669,2]
[350278409,1737761456552,-500.0,0.00019669,2]
[350278410,1737761456562,-217.91023213,0.00019669,2]
[350278411,1737761456572,-500.0,0.00019669,2]
[350278412,1737761456582,-500.0,0.00019669,2]
[350278413,1737761456591,-500.0,0.00019669,2]
[350278414,1737761456600,-500.0,0.00019669,2]
[350278415,1737761456609,-465.527088,0.00019669,2]
[350278416,1737761456619,-150.0,0.00019673,2]
[350278417,1737761456629,-3904.0,0.00019673,2]
[350278418,1737761456638,-151.0,0.00019673,2]
[350278419,1737761456647,-1106.0,0.00019673,2]
[350278420,1737761456656,-478.549794,0.00019705,2]
[350278421,1737761456666,-500.0,0.00019705,2]
[350278422,1737761456676,-500.0,0.00019705,2]
[350278423,1737761456686,-349.77695,0.00019705,2]
[350278424,1737761456695,-790.5,0.00019705,2]
[350278425,1737761456704,-641.33,0.00019705,2]
[350278426,1737761456713,-500.0,0.00019705,2]
[350278427,1737761456722,-1015.38,0.00019705,2]
[350278428,1737761456731,-500.0,0.00019705,2]
[350278429,1737761456741,-500.0,0.00019705,2]
[350278430,1737761456750,-500.0,0.00019705,2]
[350278431,1737761456760,-500.0,0.00019705,2]
[350278432,1737761456769,-610.13,0.00019705,2]
[350278433,1737761456778,-500.0,0.00019705,2]
[350278434,1737761456788,-971.14,0.00019705,2]
[350278435,1737761456802,-987.19,0.00019705,2]
[350278436,1737761456813,-627.41,0.00019705,2]
[350278437,1737761456822,-758.44,0.00019705,2]
[350278438,1737761456831,-1238.6,0.00019705,2]
[350278439,1737761456840,-500.0,0.00019705,2]
[350278440,1737761456850,-417.14700132,0.00019705,2]
[350278441,1737761456862,-1065.54299868,0.00019705,2]
[350278442,1737761456871,-500.0,0.00019705,2]
[350278443,1737761456881,-500.0,0.00019705,2]
[350278444,1737761456890,-602.25,0.00019705,2]
[350278445,1737761456899,-1002.73,0.00019705,2]
[350278446,1737761456909,-916.87,0.00019705,2]
[350278447,1737761456918,-500.0,0.00019705,2]
[350278448,1737761456928,-539.65,0.00019705,2]
[350278449,1737761456938,-1549.35,0.00019705,2]
[350278450,1737761456947,-991.59,0.00019705,2]
[350278451,1737761456956,-500.0,0.00019705,2]
[350278452,1737761456965,-500.0,0.00019705,2]
[350278453,1737761456975,-645.72,0.00019705,2]
[350278454,1737761456984,-692.21,0.00019705,2]
[350278455,1737761456993,-500.0,0.00019705,2]
[350278456,1737761457002,-500.0,0.00019705,2]
[350278457,1737761457012,-500.0,0.00019705,2]
[350278458,1737761457022,-500.0,0.00019705,2]
[350278459,1737761457031,-991.13,0.00019705,2]
[350278460,1737761457040,-849.32,0.00019705,2]
[350278461,1737761457054,-1540.18,0.00019705,2]
[350278462,1737761457065,-500.0,0.00019705,2]
[350278463,1737761457074,-546.03,0.00019705,2]
[350278464,1737761457084,-215.9,0.00019705,2]
[350278465,1737761457093,-260.15,0.00019705,2]
[350278466,1737761457102,-767.68,0.00019705,2]
[350278467,1737761457112,-554.72,0.00019705,2]
[350278468,1737761457122,-500.0,0.00019705,2]
[350278469,1737761457140,-500.0,0.00019705,2]
[350278470,1737761457157,-500.0,0.00019705,2]
[350278471,1737761457176,-500.0,0.00019705,2]
[350278472,1737761457195,-500.0,0.00019705,2]
[350278473,1737761457213,-500.0,0.00019705,2]
[350278474,1737761457228,-500.0,0.00019705,2]
[350278475,1737761457246,-500.0,0.00019706,2]
[350278476,1737761457269,-448.47346201,0.00019706,2]
[350278477,1737761457288,-500.0,0.00019706,2]
[350278478,1737761457305,-500.0,0.00019706,2]
[350278479,1737761457321,-500.0,0.00019706,2]
[350278480,1737761457340,-500.0,0.00019706,2]
[350278481,1737761457353,-500.0,0.00019706,2]
[350278482,1737761457372,-500.0,0.00019706,2]
[350278483,1737761457384,-500.0,0.00019706,2]
[350278484,1737761457400,-500.0,0.00019706,2]
[350278485,1737761457415,-500.0,0.00019706,2]
[350278486,1737761457428,-500.0,0.00019706,2]
[350278487,1737761457444,-500.0,0.00019706,2]
[350278488,1737761457459,-500.0,0.00019706,2]
[350278489,1737761457473,-185.00254982,0.00019706,2]
[350278490,1737761457487,-500.0,0.00019706,2]
[350278491,1737761457502,-500.0,0.00019706,2]
[350278492,1737761457517,-500.0,0.00019706,2]
[350278493,1737761457534,-500.0,0.00019706,2]
[350278494,1737761457550,-500.0,0.00019706,2]
[350278495,1737761457566,-500.0,0.00019706,2]
[350278496,1737761457580,-523.87697902,0.00019706,2]
[350278497,1737761457593,-500.0,0.00019706,2]
[350278498,1737761457607,-500.0,0.00019706,2]
[350278499,1737761457621,-500.0,0.00019706,2]
[350278500,1737761457636,-512.42741537,0.00019706,2]
[350278501,1737761457650,-500.0,0.00019706,2]
[350278502,1737761457665,-500.0,0.00019706,2]
[350278503,1737761457675,-500.0,0.00019706,2]
[350278504,1737761457684,-500.0,0.00019706,2]
[350278505,1737761457693,-500.0,0.00019706,2]
[350278506,1737761457703,-500.0,0.00019706,2]
[350278507,1737761457711,-500.0,0.00019706,2]
[350278508,1737761457721,-629.92437206,0.00019706,2]
[350278509,1737761457730,-500.0,0.00019706,2]
[350278510,1737761457739,-500.0,0.00019706,2]
[350278511,1737761457748,-500.0,0.00019706,2]
[350278512,1737761457757,-500.0,0.00019706,2]
[350278513,1737761457767,-500.0,0.00019706,2]
[350278514,1737761457776,-500.0,0.00019706,2]
[350278515,1737761457785,-500.0,0.00019706,2]
[350278516,1737761457794,-500.0,0.00019706,2]
[350278517,1737761457809,-500.0,0.00019706,2]
[350278518,1737761457818,-500.0,0.00019706,2]
[350278519,1737761457828,-465.42807601,0.00019706,2]
[350278520,1737761457845,-500.0,0.00019294,2]
[350278521,1737761457855,-182.83192399,0.00019706,2]
[350278522,1737761457863,-500.0,0.00019706,2]
[350278523,1737761457873,-500.0,0.00019706,2]
[350278524,1737761457882,-500.0,0.00019706,2]
[350278525,1737761457891,-500.0,0.00019706,2]
[350278526,1737761457901,-500.0,0.00019706,2]
[350278527,1737761457910,-500.0,0.00019706,2]
[350278528,1737761457919,-500.0,0.00019706,2]
[350278529,1737761457928,-500.0,0.00019706,2]
[350278530,1737761457937,-500.0,0.00019706,2]
[350278531,1737761457947,-436.2762267,0.00019706,2]
[350278532,1737761457959,-63.7237733,0.00019706,2]
[350278533,1737761457968,-500.0,0.00019706,2]
[350278534,1737761457978,-500.0,0.00019706,2]
[350278535,1737761458276,-500.0,0.00019706,2]
[350278536,1737761458306,-500.0,0.00019706,2]
[350278537,1737761458319,-500.0,0.00019706,2]
[350278538,1737761458330,-500.0,0.00019706,2]
[350278539,1737761458339,-500.0,0.00019706,2]
[350278540,1737761458349,-500.0,0.00019706,2]
[350278541,1737761458359,-500.0,0.00019706,2]
[350278542,1737761458368,-170.95048312,0.00019706,2]
[350278543,1737761458376,-382.76480744,0.00019706,2]
[350278544,1737761458388,-117.23519256,0.00019706,2]
[350278545,1737761458397,-500.0,0.00019706,2]
[350278546,1737761458406,-210.82980744,0.00019706,2]
[350278547,1737761458417,-287.665,0.00019706,2]
[350278548,1737761458697,-329.175,0.00019294,2]
[350278549,1737761458709,-190.54804178,0.00019294,2]
[350278550,1737761458719,-329.75195822,0.00019294,2]
[350278551,1737761458881,-170.24804178,0.00019294,2]
[350278552,1737761458890,-500.0,0.00019294,2]
[350278553,1737761458900,-500.0,0.00019294,2]
[350278554,1737761458909,-349.64066153,0.00019294,2]
[350278555,1737761458919,-500.0,0.00019294,2]
[350278556,1737761458929,-500.0,0.00019295,2]
[350278557,1737761458938,-500.0,0.00019295,2]
[350278558,1737761458947,-500.0,0.00019295,2]
[350278559,1737761458957,-500.0,0.00019295,2]
[350278560,1737761458966,-500.0,0.00019295,2]
[350278561,1737761458976,-250.23,0.00019295,2]
[350278562,1737761458985,-388.70129669,0.00019431,2]
[350278563,1737761458998,-111.29870331,0.00019431,2]
[350278564,1737761459007,-500.0,0.00019431,2]
[350278565,1737761459017,-1.50519256,0.00019706,2]
[350278566,1737761459026,-500.0,0.00019706,2]
[350278567,1737761459035,-500.0,0.00019706,2]
[350278568,1737761459044,-500.0,0.00019706,2]
[350278569,1737761459057,-106.52145678,0.00019706,2]
[350278570,1737761459071,-393.47854322,0.00019706,2]
[350278571,1737761459081,-500.0,0.00019706,2]
[350278572,1737761459090,-500.0,0.00019706,2]
[350278573,1737761459100,-387.19610413,0.00019706,2]
[350278574,1737761459130,-74.64228263,0.00019706,2]
[350278575,1737761459141,-38.16161324,0.00019706,2]
[350278576,1737761459151,-500.0,0.00019706,2]
[350278577,1737761459160,-500.0,0.00019706,2]
[350278578,1737761459170,-500.0,0.00019706,2]
[350278579,1737761459180,-500.0,0.00019706,2]
[350278580,1737761459190,-500.0,0.00019706,2]
[350278581,1737761459200,-500.0,0.00019706,2]
[350278582,1737761459212,-500.0,0.00019706,2]
[350278583,1737761459223,-500.0,0.00019706,2]
[350278584,1737761459234,-500.0,0.00019706,2]
[350278585,1737761459243,-195.35831632,0.00019706,2]
[350278586,1737761459262,-500.0,0.00019294,2]
[350278587,1737761459271,-304.64168368,0.00019706,2]
[350278588,1737761459281,-500.0,0.00019706,2]
[350278589,1737761459292,-46.71018975,0.00019706,2]
[350278590,1737761459308,-331.16872,0.00019706,2]
[350278591,1737761459320,-122.12109025,0.00019706,2]
[350278592,1737761459330,-377.67464211,0.00019706,2]
[350278593,1737761459339,-474.23896909,0.00019706,2]
[350278594,1737761459348,-500.0,0.00019706,2]
[350278595,1737761459358,-500.0,0.00019706,2]
[350278596,1737761459367,-500.0,0.00019706,2]
[350278597,1737761459378,-500.0,0.00019706,2]
[350278598,1737761459388,-7.04483735,0.00019706,2]
[350278599,1737761468995,5558.0,0.000154,5]
[350278601,1737761508126,786.2,0.00016944,2]
[350278609,1737762346672,161.91,0.00010137,2]
[350278611,1737762358105,-252.42,0.00018139,2]
[350278612,1737762358127,-127.36752832,0.00018139,2]
[350278614,1737762554093,-746.89,0.00016458,2]
[350278617,1737762632119,-300.0,0.00018138,2]
[350278618,1737762632129,-127.08247168,0.00018139,2]
[350278619,1737762632139,-253.16,0.00018139,2]
[350278620,1737762632149,-249.77,0.00018139,2]
[350278621,1737762632160,-251.86,0.00018139,2]
[350278622,1737762632171,-253.92,0.00018139,2]
[350278623,1737762632182,-246.39,0.00018139,2]
[350278624,1737762632191,-245.63,0.00018139,2]
[350278625,1737762632201,-251.95,0.00018139,2]
[350278626,1737762632210,-251.85,0.00018139,2]
[350278627,1737762632219,-250.09,0.00018139,2]
[350278628,1737762632229,-252.79,0.00018139,2]
[350278629,1737762632239,-500.0,0.00018139,2]
[350278630,1737762632248,-500.0,0.00018374,2]
[350278631,1737762632258,-1000.0,0.00018423,2]
[350278632,1737762632267,-152.09,0.00018469,2]
[350278633,1737762632277,-293.91,0.00018602,2]
[350278634,1737762632286,-250.0,0.00018705,2]
[350278635,1737762632296,-13256.72,0.00018712,2]
[350278636,1737762632306,-746.89,0.00018722,2]
[350278637,1737762632315,-246.47,0.00018986,2]
[350278638,1737762632324,-252.2,0.00018986,2]
[350278639,1737762632334,-246.88,0.00018986,2]
[350278640,1737762632343,-500.0,0.00018986,2]
[350278641,1737762632353,-2500.0,0.00019,4]
[350278642,1737762632366,-15356.92,0.00019,2]
[350278643,1737762632375,-174.53,0.00019116,2]
[350278644,1737762632384,-250.95,0.00019208,2]
[350278645,1737762632393,-251.7,0.00019208,2]
[350278646,1737762632405,-251.45,0.00019294,2]
[350278647,1737762632415,-249.94,0.00019294,2]
[350278648,1737762632425,-246.9,0.00019294,2]
[350278649,1737762632434,-154.35908944,0.00019294,2]
[350278650,1737762632443,-500.0,0.00019294,2]
[350278651,1737762632453,-500.0,0.00019294,2]
[350278652,1737762632463,-500.0,0.00019294,2]
[350278653,1737762632472,-500.0,0.00019294,2]
[350278654,1737762632482,-500.0,0.00019294,2]
[350278655,1737762632491,-500.0,0.00019294,2]
[350278656,1737762632500,-500.0,0.00019294,2]
[350278657,1737762632509,-500.0,0.00019294,2]
[350278658,1737762632519,-500.0,0.00019294,2]
[350278659,1737762632528,-500.0,0.00019294,2]
[350278660,1737762632538,-500.0,0.00019294,2]
[350278661,1737762632547,-1395.619,0.00019294,2]
[350278662,1737762632558,-500.0,0.00019294,2]
[350278663,1737762632572,-500.0,0.00019294,2]
[350278664,1737762632581,-433.09873545,0.00019294,2]
[350278666,1737762632593,-66.90126455,0.00019294,2]
[350278668,1737762632603,-500.0,0.00019294,2]
[350278670,1737762632615,-500.0,0.00019294,2]
[350278672,1737762632625,-500.0,0.00019294,2]
[350278673,1737762632635,-500.0,0.00019294,2]
[350278674,1737762632646,-500.0,0.00019294,2]
[350278675,1737762632656,-500.0,0.00019294,2]
[350278676,1737762632666,-500.0,0.00019294,2]
[350278677,1737762632676,-500.0,0.00019294,2]
[350278678,1737762632685,-586.29715844,0.00019294,2]
[350278679,1737762632695,-500.0,0.00019294,2]
[350278680,1737762632705,-500.0,0.00019294,2]
[350278681,1737762632714,-500.0,0.00019294,2]
[350278682,1737762632724,-500.0,0.00019294,2]
[350278683,1737762632733,-500.0,0.00019294,2]
[350278684,1737762632742,-500.0,0.00019294,2]
[350278685,1737762632751,-500.0,0.00019294,2]
[350278686,1737762632761,-500.0,0.00019294,2]
[350278687,1737762632770,-522.91424533,0.00019294,2]
[350278688,1737762632780,-404.3968059,0.00019294,2]
[350278689,1737762632789,-473.50478319,0.00019294,2]
[350278690,1737762632798,-500.0,0.00019294,2]
[350278691,1737762632809,-500.0,0.00019294,2]
[350278692,1737762632818,-500.0,0.00019294,2]
[350278693,1737762632827,-500.0,0.00019294,2]
[350278694,1737762632836,-500.0,0.00019294,2]
[350278695,1737762632845,-500.0,0.00019294,2]
[350278696,1737762632859,-500.0,0.00019294,2]
[350278697,1737762632868,-500.0,0.00019294,2]
[350278698,1737762632877,-500.0,0.00019294,2]
[350278699,1737762632887,-500.0,0.00019294,2]
[350278701,1737762632896,-500.0,0.00019294,2]
[350278702,1737762632905,-500.0,0.00019294,2]
[350278703,1737762632914,-500.0,0.00019294,2]
[350278704,1737762632923,-500.0,0.00019294,2]
[350278705,1737762632934,-627.61,0.00019294,2]
[350278706,1737762632943,-500.0,0.00019294,2]
[350278707,1737762632953,-500.0,0.00019294,2]
[350278708,1737762632962,-500.0,0.00019294,2]
[350278709,1737762632973,-500.0,0.00019294,2]